[Event "Late-Titled-Tuesday-Blitz-February-27-2024"]
[Site "Chess.com"]
[Date "2024.02.27"]
[Round "10"]
[White "northridgehawk"]
[Black "elchacal664"]
[Result "0-1"]
[WhiteElo "2274"]
[BlackElo "2418"]
[TimeControl "180+1"]
[EndTime "15:56:38 PST"]
[Termination "elchacal664 won by resignation"]

1. e4 {[%clk 0:02:45]} 1... c5 {[%clk 0:02:57.4]} 2. d3 {[%clk 0:02:27.6]} 2...
Nc6 {[%clk 0:02:57.1]} 3. Nc3 {[%clk 0:02:20.3]} 3... g6 {[%clk 0:02:51.6]} 4.
Nge2 {[%clk 0:02:21.2]} 4... Bg7 {[%clk 0:02:51.7]} 5. g3 {[%clk 0:02:18]} 5...
d6 {[%clk 0:02:51.4]} 6. Bg2 {[%clk 0:02:08.2]} 6... h5 {[%clk 0:02:52.3]} 7.
O-O {[%clk 0:02:07.8]} 7... h4 {[%clk 0:02:52.2]} 8. f4 {[%clk 0:02:06.9]} 8...
hxg3 {[%clk 0:02:52]} 9. Nxg3 {[%clk 0:02:06]} 9... Bd4+ {[%clk 0:02:43.8]} 10.
Kh1 {[%clk 0:02:05.6]} 10... e6 {[%clk 0:02:44]} 11. Qe2 {[%clk 0:01:57.3]}
11... Qh4 {[%clk 0:02:42.9]} 12. Bh3 {[%clk 0:01:44.1]} 12... Qxh3 {[%clk
0:02:39.1]} 13. Qg2 {[%clk 0:01:44.3]} 13... Qxg2+ {[%clk 0:02:28.1]} 14. Kxg2
{[%clk 0:01:45.2]} 14... Bg7 {[%clk 0:02:20.5]} 15. Nce2 {[%clk 0:01:44.7]}
15... Bh6 {[%clk 0:02:19.6]} 16. c3 {[%clk 0:01:42.7]} 16... Nge7 {[%clk
0:02:18.9]} 17. h4 {[%clk 0:01:39.9]} 17... Bd7 {[%clk 0:02:18.8]} 18. Be3
{[%clk 0:01:39.2]} 18... O-O-O {[%clk 0:02:18.6]} 19. Rh1 {[%clk 0:01:37.1]}
19... Bg7 {[%clk 0:02:16.2]} 20. Kf3 {[%clk 0:01:36.7]} 20... b6 {[%clk
0:02:02.2]} 21. Rag1 {[%clk 0:01:21.2]} 21... d5 {[%clk 0:01:57.3]} 22. h5
{[%clk 0:01:20.7]} 22... Rdg8 {[%clk 0:01:47.4]} 23. a3 {[%clk 0:01:02.5]} 23...
Bf8 {[%clk 0:01:45]} 24. b4 {[%clk 0:00:59.8]} 24... cxb4 {[%clk 0:01:24.8]} 25.
axb4 {[%clk 0:00:58.8]} 25... Kb7 {[%clk 0:01:20.3]} 26. hxg6 {[%clk 0:00:58.6]}
26... Nxg6 {[%clk 0:01:16.7]} 27. Nh5 {[%clk 0:00:55.9]} 27... Be7 {[%clk
0:01:10.3]} 28. b5 {[%clk 0:00:54.4]} 28... Na5 {[%clk 0:01:05.9]} 29. Nd4
{[%clk 0:00:53.2]} 29... e5 {[%clk 0:01:02.4]} 30. Nf5 {[%clk 0:00:48.5]} 30...
Bxf5 {[%clk 0:01:01.7]} 31. exf5 {[%clk 0:00:48.3]} 31... Nxf4 {[%clk
0:00:59.1]} 32. Nxf4 {[%clk 0:00:47.1]} 32... exf4 {[%clk 0:01:00]} 33. Bxf4
{[%clk 0:00:46.3]} 33... Bf6 {[%clk 0:00:59.1]} 34. d4 {[%clk 0:00:43.3]} 34...
Nc4 {[%clk 0:00:56]} 35. Re1 {[%clk 0:00:40]} 35... Rxh1 {[%clk 0:00:54.6]} 36.
Rxh1 {[%clk 0:00:40.9]} 36... Rh8 {[%clk 0:00:53.6]} 37. Rc1 {[%clk 0:00:31.1]}
37... Kc8 {[%clk 0:00:49]} 38. Ra1 {[%clk 0:00:29.7]} 38... Kb7 {[%clk
0:00:48.5]} 39. Rc1 {[%clk 0:00:29.5]} 39... Rh3+ {[%clk 0:00:48.2]} 40. Kg4
{[%clk 0:00:24.8]} 40... Rd3 {[%clk 0:00:44.6]} 41. Bg5 {[%clk 0:00:24.9]} 41...
Bxg5 {[%clk 0:00:40.7]} 42. Kxg5 {[%clk 0:00:25.8]} 42... Rf3 {[%clk 0:00:35.5]}
43. Re1 {[%clk 0:00:20.8]} 43... Ne3 {[%clk 0:00:34.9]} 44. Kf6 {[%clk
0:00:14.8]} 44... Rxf5+ {[%clk 0:00:32.7]} 45. Ke7 {[%clk 0:00:15.1]} 45... Rf3
{[%clk 0:00:32.3]} 46. Kd6 {[%clk 0:00:15.2]} 46... f5 {[%clk 0:00:29.3]} 47.
Rh1 {[%clk 0:00:14.8]} 47... Nc4+ {[%clk 0:00:23.3]} 48. Kxd5 {[%clk 0:00:13.7]}
48... Rxc3 {[%clk 0:00:21.8]} 49. Rh7+ {[%clk 0:00:12.4]} 49... Kc8 {[%clk
0:00:21.4]} 50. Rh8+ {[%clk 0:00:12.9]} 50... Kd7 {[%clk 0:00:21.6]} 51. Rh7+
{[%clk 0:00:13.1]} 51... Ke8 {[%clk 0:00:21.9]} 52. Rxa7 {[%clk 0:00:13.4]}
52... f4 {[%clk 0:00:19.6]} 53. Ke6 {[%clk 0:00:13.2]} 53... Re3+ {[%clk
0:00:18.5]} 54. Kf6 {[%clk 0:00:11.6]} 54... f3 {[%clk 0:00:18.6]} 55. Ra8+
{[%clk 0:00:11.4]} 55... Kd7 {[%clk 0:00:18.9]} 56. Ra7+ {[%clk 0:00:12.3]}
56... Kd6 {[%clk 0:00:19.2]} 57. Rf7 {[%clk 0:00:12.8]} 57... f2 {[%clk
0:00:19]} 58. Kg5 {[%clk 0:00:13.2]} 58... Re2 {[%clk 0:00:19]} 59. Kg4 {[%clk
0:00:13.2]} 59... Ne3+ {[%clk 0:00:17.9]} 60. Kf3 {[%clk 0:00:13.1]} 60... f1=Q+
{[%clk 0:00:18.1]} 61. Ke4 {[%clk 0:00:13.2]} 61... Qxf7 {[%clk 0:00:19]} 62. d5
{[%clk 0:00:13.6]} 62... Qxd5+ {[%clk 0:00:19.8]} 63. Kf4 {[%clk 0:00:12.6]}
63... Qxb5 {[%clk 0:00:18.4]} 0-1

[Event "Late-Titled-Tuesday-Blitz-February-27-2024"]
[Site "Chess.com"]
[Date "2024.02.27"]
[Round "10"]
[White "CURRUTACO59"]
[Black "TheAlienParty"]
[Result "0-1"]
[WhiteElo "2237"]
[BlackElo "2381"]
[TimeControl "180+1"]
[EndTime "15:56:39 PST"]
[Termination "TheAlienParty won on time"]

1. Nf3 {[%clk 0:02:59]} 1... d6 {[%clk 0:02:54.5]} 2. d4 {[%clk 0:02:57.9]} 2...
Bg4 {[%clk 0:02:53.9]} 3. Nbd2 {[%clk 0:02:50.9]} 3... g6 {[%clk 0:02:52.1]} 4.
g3 {[%clk 0:02:50.4]} 4... Bg7 {[%clk 0:02:50.7]} 5. Bg2 {[%clk 0:02:50.5]} 5...
c6 {[%clk 0:02:49.9]} 6. O-O {[%clk 0:02:50.3]} 6... Qd7 {[%clk 0:02:49.6]} 7.
c4 {[%clk 0:02:41.8]} 7... Bh3 {[%clk 0:02:49.1]} 8. e4 {[%clk 0:02:35.9]} 8...
Bxg2 {[%clk 0:02:48.7]} 9. Kxg2 {[%clk 0:02:35.3]} 9... Qc7 {[%clk 0:02:47.2]}
10. Qe2 {[%clk 0:02:30]} 10... Nd7 {[%clk 0:02:45.2]} 11. b3 {[%clk 0:02:24.5]}
11... c5 {[%clk 0:02:43.4]} 12. Bb2 {[%clk 0:02:24]} 12... cxd4 {[%clk
0:02:43.2]} 13. Nxd4 {[%clk 0:02:15.7]} 13... Ngf6 {[%clk 0:02:42.4]} 14. Rac1
{[%clk 0:02:10.7]} 14... a6 {[%clk 0:02:40.5]} 15. Rfd1 {[%clk 0:02:02.2]} 15...
b6 {[%clk 0:02:38.6]} 16. Nf1 {[%clk 0:01:56.1]} 16... Qb7 {[%clk 0:02:35]} 17.
f3 {[%clk 0:01:55]} 17... O-O {[%clk 0:02:27.9]} 18. Ne3 {[%clk 0:01:54.3]}
18... Ne5 {[%clk 0:02:17.9]} 19. Rc2 {[%clk 0:01:50.6]} 19... e6 {[%clk
0:02:15.6]} 20. Rcd2 {[%clk 0:01:38.3]} 20... Rfd8 {[%clk 0:02:14.8]} 21. Ndc2
{[%clk 0:01:35]} 21... Ne8 {[%clk 0:01:56.9]} 22. Ne1 {[%clk 0:01:17.5]} 22...
g5 {[%clk 0:01:54.4]} 23. Nd3 {[%clk 0:01:02.3]} 23... Ng6 {[%clk 0:01:51.5]}
24. Bxg7 {[%clk 0:00:58.9]} 24... Kxg7 {[%clk 0:01:47.6]} 25. Nf2 {[%clk
0:00:58.7]} 25... h5 {[%clk 0:01:46]} 26. Qd3 {[%clk 0:00:47.9]} 26... Qc6
{[%clk 0:01:41]} 27. Qd4+ {[%clk 0:00:45.9]} 27... Kg8 {[%clk 0:01:36.8]} 28.
Nh3 {[%clk 0:00:38]} 28... g4 {[%clk 0:01:26]} 29. fxg4 {[%clk 0:00:32.6]} 29...
hxg4 {[%clk 0:01:25]} 30. Nxg4 {[%clk 0:00:30.1]} 30... f5 {[%clk 0:01:24.7]}
31. Ngf2 {[%clk 0:00:19.5]} 31... fxe4 {[%clk 0:01:10.4]} 32. Nxe4 {[%clk
0:00:17.1]} 32... Ra7 {[%clk 0:01:09.3]} 33. Kg1 {[%clk 0:00:14.5]} 33... Ne5
{[%clk 0:01:06.2]} 34. Rf1 {[%clk 0:00:10.4]} 34... Rdd7 {[%clk 0:00:56.6]} 35.
Rdf2 {[%clk 0:00:10.4]} 35... Rf7 {[%clk 0:00:56.2]} 36. Nhg5 {[%clk 0:00:08.6]}
36... Rxf2 {[%clk 0:00:48.8]} 37. Rxf2 {[%clk 0:00:09.5]} 37... Re7 {[%clk
0:00:42.9]} 38. Qe3 {[%clk 0:00:09.3]} 38... Ng4 {[%clk 0:00:30.4]} 39. Qf4
{[%clk 0:00:08]} 39... Nxf2 {[%clk 0:00:29.4]} 40. Nxf2 {[%clk 0:00:07.4]} 40...
Qc5 {[%clk 0:00:27.9]} 41. Kg2 {[%clk 0:00:06.8]} 41... Qf5 {[%clk 0:00:26.9]}
42. Qe3 {[%clk 0:00:06.2]} 42... e5 {[%clk 0:00:24.8]} 43. Nfe4 {[%clk 0:00:06]}
43... Rg7 {[%clk 0:00:19.5]} 44. h4 {[%clk 0:00:06]} 44... Rb7 {[%clk 0:00:18]}
45. Qd3 {[%clk 0:00:04.9]} 45... b5 {[%clk 0:00:17.1]} 46. Qd5+ {[%clk
0:00:04.9]} 46... Kf8 {[%clk 0:00:14.2]} 47. Qxb7 {[%clk 0:00:03.3]} 47... Nf6
{[%clk 0:00:12.9]} 48. Nxf6 {[%clk 0:00:02]} 48... Qxf6 {[%clk 0:00:12.8]} 49.
Qc8+ {[%clk 0:00:01.8]} 49... Ke7 {[%clk 0:00:12.7]} 50. Qc7+ {[%clk 0:00:01.7]}
50... Ke8 {[%clk 0:00:12.8]} 51. Qc8+ {[%clk 0:00:01.8]} 51... Ke7 {[%clk
0:00:12.9]} 52. Qg4 {[%clk 0:00:01.5]} 52... Kd8 {[%clk 0:00:11.9]} 53. Qf3
{[%clk 0:00:01.4]} 53... Qg7 {[%clk 0:00:11.8]} 0-1

[Event "Late-Titled-Tuesday-Blitz-February-27-2024"]
[Site "Chess.com"]
[Date "2024.02.27"]
[Round "10"]
[White "Unkreativ3"]
[Black "delqate"]
[Result "1-0"]
[WhiteElo "2592"]
[BlackElo "2408"]
[TimeControl "180+1"]
[EndTime "15:56:42 PST"]
[Termination "Unkreativ3 won on time"]

1. e4 {[%clk 0:02:58.8]} 1... c6 {[%clk 0:03:00.2]} 2. Nf3 {[%clk 0:02:57.3]}
2... d5 {[%clk 0:03:01.1]} 3. Nc3 {[%clk 0:02:57.6]} 3... Bg4 {[%clk 0:03:01.1]}
4. exd5 {[%clk 0:02:56.6]} 4... cxd5 {[%clk 0:03:00.9]} 5. d4 {[%clk 0:02:53.6]}
5... Nc6 {[%clk 0:02:56.7]} 6. Be2 {[%clk 0:02:52.2]} 6... e6 {[%clk 0:02:56.3]}
7. O-O {[%clk 0:02:52.1]} 7... Nf6 {[%clk 0:02:56.1]} 8. h3 {[%clk 0:02:52.5]}
8... Bh5 {[%clk 0:02:55.7]} 9. Bg5 {[%clk 0:02:50.5]} 9... Be7 {[%clk
0:02:55.4]} 10. Ne5 {[%clk 0:02:48.5]} 10... Bxe2 {[%clk 0:02:50.9]} 11. Nxe2
{[%clk 0:02:46.5]} 11... O-O {[%clk 0:02:51.1]} 12. Nxc6 {[%clk 0:02:44.5]}
12... bxc6 {[%clk 0:02:50.9]} 13. c3 {[%clk 0:02:45]} 13... Ne4 {[%clk
0:02:45.3]} 14. Bxe7 {[%clk 0:02:43.2]} 14... Qxe7 {[%clk 0:02:46.2]} 15. Qa4
{[%clk 0:02:33.4]} 15... c5 {[%clk 0:02:45.4]} 16. f3 {[%clk 0:02:29.8]} 16...
Nd2 {[%clk 0:02:41.3]} 17. Rfe1 {[%clk 0:02:18.7]} 17... Nc4 {[%clk 0:02:41.2]}
18. b3 {[%clk 0:02:15.3]} 18... Nb6 {[%clk 0:02:37.8]} 19. Qa3 {[%clk
0:02:15.3]} 19... Rfc8 {[%clk 0:02:34.6]} 20. dxc5 {[%clk 0:02:14.7]} 20... Rxc5
{[%clk 0:02:28.5]} 21. Rad1 {[%clk 0:02:13.7]} 21... Qc7 {[%clk 0:02:21]} 22.
Qa6 {[%clk 0:02:05.3]} 22... h6 {[%clk 0:02:09.2]} 23. Kh1 {[%clk 0:02:04.2]}
23... Nd7 {[%clk 0:02:00.6]} 24. Qd3 {[%clk 0:02:02.3]} 24... Ne5 {[%clk
0:01:57.9]} 25. Qe3 {[%clk 0:01:58.9]} 25... Ng6 {[%clk 0:01:56]} 26. Rc1 {[%clk
0:01:53.2]} 26... a5 {[%clk 0:01:52.6]} 27. Nd4 {[%clk 0:01:43.8]} 27... Rc8
{[%clk 0:01:47.2]} 28. Qg1 {[%clk 0:01:34.6]} 28... Qg3 {[%clk 0:01:24.5]} 29.
Ne2 {[%clk 0:01:28.4]} 29... Qg5 {[%clk 0:01:24]} 30. b4 {[%clk 0:01:24.4]}
30... Rc4 {[%clk 0:01:13.2]} 31. Rb1 {[%clk 0:01:13.8]} 31... axb4 {[%clk
0:00:58.2]} 32. Rxb4 {[%clk 0:01:06]} 32... Nh4 {[%clk 0:00:43.9]} 33. f4 {[%clk
0:00:40.4]} 33... Qg6 {[%clk 0:00:35.5]} 34. Qf2 {[%clk 0:00:36.7]} 34... Qf6
{[%clk 0:00:24.1]} 35. Reb1 {[%clk 0:00:28]} 35... h5 {[%clk 0:00:21.5]} 36. a4
{[%clk 0:00:24.6]} 36... Nf5 {[%clk 0:00:19.7]} 37. a5 {[%clk 0:00:22.9]} 37...
R4c6 {[%clk 0:00:09.5]} 38. Rb8 {[%clk 0:00:21.2]} 38... Qd8 {[%clk 0:00:07.8]}
39. Rxc8 {[%clk 0:00:20.6]} 39... Qxc8 {[%clk 0:00:08.7]} 40. Qa7 {[%clk
0:00:20.5]} 40... Ra6 {[%clk 0:00:07.6]} 41. Qb8 {[%clk 0:00:18.2]} 41... Qxb8
{[%clk 0:00:07.4]} 42. Rxb8+ {[%clk 0:00:19.1]} 42... Kh7 {[%clk 0:00:08]} 43.
Rb5 {[%clk 0:00:18.3]} 43... Nd6 {[%clk 0:00:08.3]} 44. Rb6 {[%clk 0:00:18.8]}
44... Rxb6 {[%clk 0:00:05]} 45. axb6 {[%clk 0:00:19.7]} 45... Kg6 {[%clk
0:00:02.8]} 46. Nd4 {[%clk 0:00:19.7]} 46... Nb7 {[%clk 0:00:03.1]} 47. g4
{[%clk 0:00:18.3]} 47... hxg4 {[%clk 0:00:02.7]} 48. hxg4 {[%clk 0:00:19.2]}
48... Kf6 {[%clk 0:00:03.2]} 49. Kg2 {[%clk 0:00:18.9]} 49... e5 {[%clk
0:00:03.8]} 50. g5+ {[%clk 0:00:19.2]} 50... Ke7 {[%clk 0:00:03.7]} 51. fxe5
{[%clk 0:00:19.5]} 51... Kd7 {[%clk 0:00:04.3]} 52. Kf3 {[%clk 0:00:18.1]} 52...
Nc5 {[%clk 0:00:04.6]} 53. Kg4 {[%clk 0:00:17.6]} 53... Ne4 {[%clk 0:00:03.9]}
54. Kf5 {[%clk 0:00:14.8]} 54... Nxc3 {[%clk 0:00:04.1]} 55. g6 {[%clk
0:00:14.1]} 55... fxg6+ {[%clk 0:00:04.2]} 56. Kxg6 {[%clk 0:00:15]} 56... Na4
{[%clk 0:00:03.6]} 57. e6+ {[%clk 0:00:13.6]} 57... Ke7 {[%clk 0:00:03.3]} 58.
b7 {[%clk 0:00:13.7]} 1-0

[Event "Late-Titled-Tuesday-Blitz-February-27-2024"]
[Site "Chess.com"]
[Date "2024.02.27"]
[Round "10"]
[White "rasmussvane"]
[Black "ProChessWICTH"]
[Result "1-0"]
[WhiteElo "2940"]
[BlackElo "2593"]
[TimeControl "180+1"]
[EndTime "15:56:48 PST"]
[Termination "rasmussvane won on time"]

1. Nf3 {[%clk 0:03:00.9]} 1... c6 {[%clk 0:02:49.2]} 2. g3 {[%clk 0:03:00.5]}
2... d5 {[%clk 0:02:49.7]} 3. Bg2 {[%clk 0:03:00.4]} 3... Nf6 {[%clk 0:02:50.3]}
4. O-O {[%clk 0:02:59.5]} 4... Bf5 {[%clk 0:02:50.7]} 5. c4 {[%clk 0:02:56.7]}
5... e6 {[%clk 0:02:50]} 6. Qb3 {[%clk 0:02:56.5]} 6... Qb6 {[%clk 0:02:46.9]}
7. d3 {[%clk 0:02:53.6]} 7... Nbd7 {[%clk 0:02:40.7]} 8. cxd5 {[%clk 0:02:52.1]}
8... Qxb3 {[%clk 0:02:35.9]} 9. axb3 {[%clk 0:02:53]} 9... exd5 {[%clk
0:02:36.4]} 10. Bd2 {[%clk 0:02:52.4]} 10... Bd6 {[%clk 0:02:34.7]} 11. b4
{[%clk 0:02:49]} 11... O-O {[%clk 0:02:33.7]} 12. Bc3 {[%clk 0:02:30.8]} 12...
a6 {[%clk 0:02:33.5]} 13. Nbd2 {[%clk 0:02:30.7]} 13... Rfe8 {[%clk 0:02:31.6]}
14. Nd4 {[%clk 0:02:29.7]} 14... Bg6 {[%clk 0:02:29.1]} 15. N2b3 {[%clk
0:02:29.7]} 15... Bc7 {[%clk 0:02:21.6]} 16. Rfe1 {[%clk 0:02:29.3]} 16... Re7
{[%clk 0:02:02.9]} 17. Kf1 {[%clk 0:02:29.1]} 17... Rae8 {[%clk 0:02:02.5]} 18.
h3 {[%clk 0:02:24.2]} 18... h6 {[%clk 0:02:02]} 19. Rad1 {[%clk 0:02:22.9]}
19... Bd6 {[%clk 0:01:54.4]} 20. f4 {[%clk 0:02:19.2]} 20... Nb6 {[%clk
0:01:52.7]} 21. Ra1 {[%clk 0:02:15.4]} 21... Re3 {[%clk 0:01:35]} 22. Kf2 {[%clk
0:02:09.8]} 22... R3e7 {[%clk 0:01:23.3]} 23. Bf3 {[%clk 0:02:09]} 23... Nc8
{[%clk 0:01:15]} 24. Rad1 {[%clk 0:02:08.1]} 24... Nb6 {[%clk 0:01:13.2]} 25.
Ra1 {[%clk 0:02:08.1]} 25... Nc8 {[%clk 0:01:13.3]} 26. Nc2 {[%clk 0:02:00.7]}
26... h5 {[%clk 0:01:10.8]} 27. Ncd4 {[%clk 0:01:58.6]} 27... Nb6 {[%clk
0:01:09.8]} 28. Bd2 {[%clk 0:01:35.7]} 28... Nc8 {[%clk 0:01:00.4]} 29. Bc3
{[%clk 0:01:18.1]} 29... h4 {[%clk 0:00:52.7]} 30. gxh4 {[%clk 0:00:59.8]} 30...
Bxf4 {[%clk 0:00:51.7]} 31. Bd2 {[%clk 0:01:00.4]} 31... Bxd2 {[%clk 0:00:48.3]}
32. Nxd2 {[%clk 0:01:00.6]} 32... Nd6 {[%clk 0:00:47]} 33. Rg1 {[%clk
0:00:59.9]} 33... Nf5 {[%clk 0:00:43.2]} 34. Nxf5 {[%clk 0:00:56.8]} 34... Bxf5
{[%clk 0:00:44.1]} 35. Rg3 {[%clk 0:00:56.9]} 35... Kh7 {[%clk 0:00:29.4]} 36.
Nb3 {[%clk 0:00:57.1]} 36... Nd7 {[%clk 0:00:25.2]} 37. Nd4 {[%clk 0:00:56.2]}
37... Be6 {[%clk 0:00:23.8]} 38. Rag1 {[%clk 0:00:55.5]} 38... Rg8 {[%clk
0:00:23.1]} 39. Rg5 {[%clk 0:00:54.9]} 39... Nf6 {[%clk 0:00:21.3]} 40. R5g3
{[%clk 0:00:43]} 40... Nd7 {[%clk 0:00:20.1]} 41. Ke1 {[%clk 0:00:40.3]} 41...
Nf6 {[%clk 0:00:18.6]} 42. Kd2 {[%clk 0:00:40.5]} 42... Nd7 {[%clk 0:00:18.8]}
43. Bg4 {[%clk 0:00:36]} 43... Bxg4 {[%clk 0:00:16.7]} 44. hxg4 {[%clk
0:00:34.8]} 44... Ne5 {[%clk 0:00:13.4]} 45. Rf1 {[%clk 0:00:34.9]} 45... f6
{[%clk 0:00:12.8]} 46. g5 {[%clk 0:00:34.9]} 46... Rf8 {[%clk 0:00:10.9]} 47.
Rfg1 {[%clk 0:00:20.2]} 47... b6 {[%clk 0:00:09.9]} 48. Nf5 {[%clk 0:00:19.2]}
48... Ra7 {[%clk 0:00:08.2]} 49. gxf6 {[%clk 0:00:16.6]} 49... gxf6 {[%clk
0:00:08.9]} 50. Rg7+ {[%clk 0:00:17.1]} 50... Rxg7 {[%clk 0:00:09.4]} 51. Rxg7+
{[%clk 0:00:17.9]} 51... Kh8 {[%clk 0:00:10.1]} 52. Rb7 {[%clk 0:00:18.3]} 52...
b5 {[%clk 0:00:10]} 53. Ra7 {[%clk 0:00:17.2]} 53... Rg8 {[%clk 0:00:09.2]} 54.
Rxa6 {[%clk 0:00:17.1]} 54... Rg2 {[%clk 0:00:08.6]} 55. Nd4 {[%clk 0:00:16.8]}
55... Rh2 {[%clk 0:00:08]} 56. Nxc6 {[%clk 0:00:16.8]} 56... Rxh4 {[%clk
0:00:07.7]} 57. Kc3 {[%clk 0:00:15.1]} 57... Rh2 {[%clk 0:00:05.8]} 58. Nd4
{[%clk 0:00:15.5]} 58... Ng4 {[%clk 0:00:05.3]} 59. Rb6 {[%clk 0:00:14.1]} 59...
Ne3 {[%clk 0:00:02.8]} 60. Rxf6 {[%clk 0:00:12.9]} 60... Rh1 {[%clk 0:00:02.4]}
61. Rb6 {[%clk 0:00:11.5]} 1-0

[Event "Late-Titled-Tuesday-Blitz-February-27-2024"]
[Site "Chess.com"]
[Date "2024.02.27"]
[Round "10"]
[White "LiemLe"]
[Black "KuzubovYuriy"]
[Result "0-1"]
[WhiteElo "3055"]
[BlackElo "2985"]
[TimeControl "180+1"]
[EndTime "15:56:49 PST"]
[Termination "KuzubovYuriy won by resignation"]

1. d4 {[%clk 0:03:00.9]} 1... g6 {[%clk 0:03:00.2]} 2. e4 {[%clk 0:03:00.1]}
2... Bg7 {[%clk 0:03:00.7]} 3. Nc3 {[%clk 0:03:00.7]} 3... d6 {[%clk 0:03:01.1]}
4. Nf3 {[%clk 0:03:00.2]} 4... Nc6 {[%clk 0:02:59]} 5. d5 {[%clk 0:02:40.1]}
5... Nb8 {[%clk 0:02:59.1]} 6. Be2 {[%clk 0:02:33.8]} 6... Nf6 {[%clk
0:02:58.9]} 7. O-O {[%clk 0:02:33.7]} 7... O-O {[%clk 0:02:59.2]} 8. a4 {[%clk
0:02:33.4]} 8... c6 {[%clk 0:02:55.4]} 9. Re1 {[%clk 0:02:32]} 9... Nbd7 {[%clk
0:02:54.4]} 10. h3 {[%clk 0:02:27.9]} 10... a5 {[%clk 0:02:48.6]} 11. Be3 {[%clk
0:02:27.3]} 11... Qc7 {[%clk 0:02:46.8]} 12. Nd2 {[%clk 0:02:18.8]} 12... Nb6
{[%clk 0:02:25.4]} 13. Bf3 {[%clk 0:02:06.3]} 13... Nfd7 {[%clk 0:02:22.5]} 14.
Ra3 {[%clk 0:02:01.7]} 14... Nc5 {[%clk 0:02:11.9]} 15. Qe2 {[%clk 0:01:43.4]}
15... cxd5 {[%clk 0:01:33.2]} 16. exd5 {[%clk 0:01:27]} 16... Bd7 {[%clk
0:01:33]} 17. Nb5 {[%clk 0:01:23.6]} 17... Qc8 {[%clk 0:01:00.9]} 18. b3 {[%clk
0:01:10.9]} 18... Re8 {[%clk 0:00:58.9]} 19. Ra2 {[%clk 0:01:02.5]} 19... Bxb5
{[%clk 0:00:52.4]} 20. Qxb5 {[%clk 0:01:03.4]} 20... Nbd7 {[%clk 0:00:47.8]} 21.
Nc4 {[%clk 0:01:00.3]} 21... Qc7 {[%clk 0:00:45.2]} 22. Bd2 {[%clk 0:00:45.9]}
22... Ne5 {[%clk 0:00:32.2]} 23. Bxa5 {[%clk 0:00:43.4]} 23... Nxf3+ {[%clk
0:00:31.8]} 24. gxf3 {[%clk 0:00:44.3]} 24... Qc8 {[%clk 0:00:31.5]} 25. Kg2
{[%clk 0:00:41.8]} 25... Qf5 {[%clk 0:00:29.8]} 26. Nxd6 {[%clk 0:00:38]} 26...
Qg5+ {[%clk 0:00:28.7]} 27. Kf1 {[%clk 0:00:38.1]} 27... Red8 {[%clk 0:00:23.3]}
28. Bxd8 {[%clk 0:00:36.6]} 28... Rxd8 {[%clk 0:00:20.6]} 29. Ne4 {[%clk
0:00:29.1]} 29... Nxe4 {[%clk 0:00:18.8]} 30. fxe4 {[%clk 0:00:30]} 30... Bc3
{[%clk 0:00:16.3]} 31. Re3 {[%clk 0:00:29.1]} 31... Bd4 {[%clk 0:00:16.4]} 32.
Rf3 {[%clk 0:00:27.6]} 32... Qc1+ {[%clk 0:00:14.8]} 33. Kg2 {[%clk 0:00:27.5]}
33... Qg5+ {[%clk 0:00:15.2]} 34. Rg3 {[%clk 0:00:26.5]} 34... Qf6 {[%clk
0:00:15.5]} 35. c4 {[%clk 0:00:26]} 35... b6 {[%clk 0:00:14.9]} 36. Qb4 {[%clk
0:00:22.4]} 36... h5 {[%clk 0:00:14.7]} 37. Qd2 {[%clk 0:00:21.4]} 37... Be5
{[%clk 0:00:14.7]} 38. Rf3 {[%clk 0:00:21.1]} 38... Qh4 {[%clk 0:00:13.7]} 39.
Qe3 {[%clk 0:00:20.7]} 39... Rd6 {[%clk 0:00:13.7]} 40. Re2 {[%clk 0:00:20.1]}
40... Kg7 {[%clk 0:00:12.8]} 41. Kf1 {[%clk 0:00:20.4]} 41... f6 {[%clk
0:00:11.3]} 42. Qd2 {[%clk 0:00:19]} 42... g5 {[%clk 0:00:10.7]} 43. Qd3 {[%clk
0:00:11]} 43... g4 {[%clk 0:00:11]} 44. Rg3 {[%clk 0:00:10.4]} 44... Rd8 {[%clk
0:00:10.4]} 45. hxg4 {[%clk 0:00:08.1]} 45... hxg4 {[%clk 0:00:09.7]} 46. Ke1
{[%clk 0:00:08.6]} 46... Rh8 {[%clk 0:00:08]} 47. Kd2 {[%clk 0:00:09]} 47...
Qg5+ {[%clk 0:00:08.1]} 48. Kc2 {[%clk 0:00:07.6]} 48... Rh1 {[%clk 0:00:08]}
49. Rge3 {[%clk 0:00:07.6]} 49... Bf4 {[%clk 0:00:07.5]} 50. Qd4 {[%clk
0:00:07.1]} 50... Bxe3 {[%clk 0:00:05.9]} 51. Qxe3 {[%clk 0:00:08]} 51... Qe5
{[%clk 0:00:06]} 52. Qc3 {[%clk 0:00:08.2]} 52... Rc1+ {[%clk 0:00:05.8]} 53.
Kxc1 {[%clk 0:00:07.9]} 53... Qxc3+ {[%clk 0:00:06.7]} 54. Kd1 {[%clk
0:00:08.6]} 54... Qxb3+ {[%clk 0:00:07.3]} 55. Rc2 {[%clk 0:00:08.5]} 55... Qxa4
{[%clk 0:00:07.9]} 56. Kd2 {[%clk 0:00:08.8]} 56... Qb4+ {[%clk 0:00:08.5]} 57.
Kd3 {[%clk 0:00:09.2]} 57... Qc5 {[%clk 0:00:09.2]} 58. Ke2 {[%clk 0:00:09.5]}
58... Kg6 {[%clk 0:00:09.8]} 59. Rc3 {[%clk 0:00:09.8]} 59... Kg5 {[%clk
0:00:10.3]} 60. Rc2 {[%clk 0:00:09]} 60... Qd4 {[%clk 0:00:10.8]} 61. Rd2 {[%clk
0:00:08.6]} 61... Qxe4+ {[%clk 0:00:11.4]} 62. Kf1 {[%clk 0:00:09.3]} 62...
Qxc4+ {[%clk 0:00:12.1]} 63. Re2 {[%clk 0:00:10]} 63... Qxd5 {[%clk 0:00:12]}
64. Kg1 {[%clk 0:00:10.5]} 64... e5 {[%clk 0:00:11.8]} 65. Re1 {[%clk
0:00:10.5]} 65... b5 {[%clk 0:00:11.9]} 66. Rb1 {[%clk 0:00:11.1]} 66... Qc4
{[%clk 0:00:12.1]} 67. Re1 {[%clk 0:00:11.3]} 67... b4 {[%clk 0:00:12.6]} 68.
Rd1 {[%clk 0:00:12]} 68... b3 {[%clk 0:00:13]} 69. Rd8 {[%clk 0:00:12.9]} 69...
b2 {[%clk 0:00:13.1]} 70. Rc8 {[%clk 0:00:13.8]} 70... Qxc8 {[%clk 0:00:13]} 71.
Kg2 {[%clk 0:00:14.2]} 71... Qc6+ {[%clk 0:00:13]} 0-1